fUSD/lending_fUSD_20250812
["ID","MTS","AMOUNT","RATE_DAILY","PERIOD"]
[378719415,1754989860410,-500.0,0.00041095,30]
[378719417,1754989860420,-406.9010775,0.00041095,30]
[378719419,1754989860429,-500.0,0.00041095,30]
[378719421,1754989860438,-501.81744542,0.00041095,2]
[378719423,1754989860448,-500.0,0.00041095,30]
[378719425,1754989860457,-500.0,0.00041095,30]
[378719427,1754989860467,-258.77852269,0.00041095,30]
[378719429,1754989860477,-436.07929297,0.00041095,30]
[378719431,1754989860487,-400.0,0.00041095,30]
[378719433,1754989860496,-400.0,0.00041095,30]
[378719435,1754989860506,-637.01,0.00041095,30]
[378719437,1754989860516,-400.0,0.00041095,30]
[378719439,1754989860527,-400.0,0.00041095,30]
[378719441,1754989860536,-400.0,0.00041095,30]
[378719443,1754989860545,-401.43091232,0.00041095,30]
[378719445,1754989860554,-409.42651256,0.00041095,16]
[378719447,1754989860564,-400.0,0.00041095,30]
[378719449,1754989860574,-400.0,0.00041095,30]
[378719450,1754989860583,-400.0,0.00041095,30]
[378719453,1754989860594,-401.77866926,0.00041095,30]
[378719455,1754989860603,-270.17554402,0.00041095,30]
[378719457,1754989860613,-400.0,0.00041095,30]
[378719459,1754989860622,-400.0,0.00041095,30]
[378719461,1754989860632,-243.97077762,0.00041095,30]
[378719463,1754989860642,-465.28,0.00041095,30]
[378719465,1754989860651,-400.0,0.00041095,30]
[378719467,1754989860661,-400.0,0.00041095,30]
[378719469,1754989860670,-921.07,0.00041095,30]
[378719471,1754989860681,-404.64622513,0.00041095,30]
[378719472,1754989860693,-400.0,0.00041095,30]
[378719475,1754989860703,-400.0,0.00041095,30]
[378719476,1754989860712,-400.0,0.00041095,30]
[378719478,1754989860721,-400.0,0.00041095,30]
[378719480,1754989860733,-562.95,0.00041095,30]
[378719482,1754989860742,-400.0,0.00041095,30]
[378719484,1754989860751,-423.03,0.00041095,30]
[378719486,1754989860762,-400.0,0.00041095,30]
[378719489,1754989860773,-400.0,0.00041095,30]
[378719490,1754989860783,-2147.06,0.00041095,30]
[378719492,1754989860792,-408.65670538,0.00041095,30]
[378719494,1754989860802,-400.19030227,0.00041095,30]
[378719496,1754989860812,-401.07242456,0.00041095,30]
[378719498,1754989860821,-400.0,0.00041095,30]
[378719500,1754989860830,-400.0,0.00041095,30]
[378719502,1754989860840,-400.0,0.00041095,30]
[378719504,1754989860853,-400.70671271,0.00041095,30]
[378719506,1754989860862,-400.0,0.00041095,30]
[378719508,1754989860872,-400.0,0.00041095,30]
[378719510,1754989860881,-400.0,0.00041095,30]
[378719512,1754989860889,-401.61759319,0.00041095,30]
[378719514,1754989860899,-523.7089269,0.00041095,30]
[378719516,1754989860909,-402.08721113,0.00041095,30]
[378719518,1754989860919,-400.0,0.00041095,30]
[378719520,1754989860928,-400.0,0.00041095,14]
[378719522,1754989860938,-400.0,0.00041095,30]
[378719524,1754989860948,-400.0,0.00041095,30]
[378719526,1754989860957,-400.0,0.00041095,2]
[378719528,1754989860966,-402.16725099,0.00041095,30]
[378719530,1754989860976,-488.87539611,0.00041095,30]
[378719532,1754989860986,-400.0,0.00041095,30]
[378719534,1754989860995,-418.33,0.00041095,30]
[378719536,1754989861005,-400.0,0.00041095,30]
[378719538,1754989861014,-400.0,0.00041095,30]
[378719540,1754989861025,-403.1835401,0.00041095,30]
[378719542,1754989861034,-400.0,0.00041095,30]
[378719544,1754989861047,-400.0,0.00041095,30]
[378719547,1754989861057,-400.0,0.00041095,30]
[378719548,1754989861066,-400.0,0.00041095,30]
[378719550,1754989861076,-400.0,0.00041095,30]
[378719552,1754989861085,-401.1054009,0.00041095,30]
[378719554,1754989861094,-500.0,0.00041095,30]
[378719556,1754989861104,-400.0,0.00041095,30]
[378719558,1754989861114,-473.04,0.00041095,30]
[378719561,1754989861123,-500.0,0.00041095,30]
[378719563,1754989861133,-400.0,0.00041095,30]
[378719565,1754989861142,-500.0,0.00041095,30]
[378719567,1754989861151,-500.0,0.00041095,30]
[378719569,1754989861160,-500.0,0.00041095,30]
[378719571,1754989861169,-500.0,0.00041095,30]
[378719573,1754989861178,-400.0,0.00041095,30]
[378719575,1754989861187,-500.0,0.00041095,30]
[378719576,1754989861196,-400.0,0.00041095,30]
[378719578,1754989861205,-500.0,0.00041095,30]
[378719580,1754989861214,-500.0,0.00041095,30]
[378719582,1754989861224,-500.0,0.00041095,30]
[378719585,1754989861233,-500.0,0.00041095,30]
[378719587,1754989861243,-500.0,0.00041095,30]
[378719589,1754989861253,-402.19572653,0.00041095,30]
[378719591,1754989861262,-500.0,0.00041095,30]
[378719593,1754989861271,-400.0,0.00041095,30]
[378719595,1754989861280,-400.0,0.00041095,30]
[378719597,1754989861290,-612.00494419,0.00041095,30]
[378719599,1754989861299,-400.0,0.00041095,30]
[378719601,1754989861309,-1372.52,0.00041095,30]
[378719603,1754989861318,-400.0,0.00041095,30]
[378719605,1754989861327,-400.0,0.00041095,30]
[378719607,1754989861337,-400.70400032,0.00041095,30]
[378719609,1754989861346,-400.0,0.00041095,30]
[378719610,1754989861356,-400.0,0.00041095,30]
[378719613,1754989861366,-400.0,0.00041095,30]
[378719615,1754989861375,-403.90475859,0.00041095,30]
[378719617,1754989861385,-400.0,0.00041095,30]
[378719619,1754989861394,-1347.39,0.00041095,30]
[378719621,1754989861403,-400.0,0.00041095,30]
[378719623,1754989861412,-400.0,0.00041095,30]
[378719625,1754989861421,-400.0,0.00041095,30]
[378719627,1754989861430,-400.0,0.00041095,30]
[378719629,1754989861439,-400.0,0.00041095,30]
[378719631,1754989861449,-400.0,0.00041095,30]
[378719633,1754989861458,-401.56690236,0.00041095,30]
[378719635,1754989861467,-400.0,0.00041095,30]
[378719637,1754989861476,-400.0,0.00041095,30]
[378719638,1754989861486,-282.95958907,0.00041095,30]
[378719640,1754989861495,-401.21233815,0.00041095,30]
[378719642,1754989861504,-400.0,0.00041095,30]
[378719644,1754989861513,-400.0,0.00041095,30]
[378719647,1754989861523,-400.0,0.00041095,30]
[378719649,1754989861532,-400.0,0.00041095,30]
[378719651,1754989861542,-400.0,0.00041095,30]
[378719652,1754989861551,-400.0,0.00041095,30]
[378719654,1754989861560,-400.0,0.00041095,30]
[378719656,1754989861569,-400.0,0.00041095,30]
[378719658,1754989861579,-402.28801417,0.00041095,30]
[378719661,1754989861589,-400.0,0.00041095,30]
[378719663,1754989861598,-1000.0,0.00041095,30]
[378719665,1754989861608,-400.0,0.00041095,30]
[378719666,1754989861617,-405.16182872,0.00041095,30]
[378719668,1754989861627,-400.0,0.00041095,30]
[378719670,1754989861637,-400.0,0.00041095,30]
[378719672,1754989861646,-400.0,0.00041095,30]
[378719674,1754989861655,-400.0,0.00041095,30]
[378719676,1754989861665,-400.0,0.00041095,30]
[378719678,1754989861674,-863.24,0.00041095,30]
[378719692,1754989861805,-1329.85,0.00041095,30]
[378719694,1754989861814,-407.62425883,0.00041095,30]
[378719696,1754989861824,-401.36125569,0.00041095,30]
[378719698,1754989861835,-400.0,0.00041095,30]
[378719700,1754989861846,-400.0,0.00041095,30]
[378719702,1754989861855,-401.15144869,0.00041095,30]
[378719704,1754989861865,-446.79,0.00041095,30]
[378719706,1754989861874,-401.69498404,0.00041095,30]
[378719708,1754989861884,-403.43146949,0.00041095,30]
[378719710,1754989861893,-400.0,0.00041095,30]
[378719712,1754989861903,-400.0,0.00041095,30]
[378719714,1754989861913,-272.99167399,0.00041095,30]
[378719716,1754989861923,-400.0,0.00041095,30]
[378719718,1754989861934,-400.0,0.00041095,2]
[378719720,1754989861943,-400.0,0.00041095,30]
[378719722,1754989861954,-400.0,0.00041095,30]
[378719724,1754989861963,-400.0,0.00041095,30]
[378719726,1754989861973,-400.44673814,0.00041095,3]
[378719728,1754989861982,-400.0,0.00041095,30]
[378719730,1754989861992,-400.0,0.00041095,30]
[378719732,1754989862001,-400.0,0.00041095,30]
[378719735,1754989862014,-1830.08,0.00041095,30]
[378719737,1754989862027,-400.0,0.00041095,30]
[378719739,1754989862036,-400.0,0.00041095,30]
[378719741,1754989862046,-401.54035414,0.00041095,30]
[378719743,1754989862056,-400.0,0.00041095,30]
[378719745,1754989862065,-400.0,0.00041095,30]
[378719747,1754989862074,-2024.56,0.00041095,30]
[378719749,1754989862084,-400.62872568,0.00041095,30]
[378719751,1754989862096,-400.0,0.00041095,30]
[378719753,1754989862105,-400.0,0.00041095,30]
[378719755,1754989862114,-400.0,0.00041095,30]
[378719757,1754989862124,-408.97905744,0.00041095,30]
[378719759,1754989862133,-400.0,0.00041095,30]
[378719761,1754989862143,-400.0,0.00041095,30]
[378719763,1754989862153,-400.0,0.00041095,30]
[378719765,1754989862163,-400.0,0.00041095,30]
[378719767,1754989862172,-400.0,0.00041095,30]
[378719769,1754989862182,-401.86272435,0.00041095,30]
[378719771,1754989862192,-400.0,0.00041095,30]
[378719773,1754989862201,-1441.32,0.00041095,30]
[378719775,1754989862211,-400.0,0.00041095,30]
[378719777,1754989862220,-400.0,0.00041095,30]
[378719779,1754989862230,-400.0,0.00041095,30]
[378719781,1754989862239,-400.0,0.00041095,30]
[378719783,1754989862248,-401.1766103,0.00041095,30]
[378719785,1754989862258,-293.31220116,0.00041095,30]
[378719787,1754989862267,-400.0,0.00041095,30]
[378719789,1754989862277,-400.0,0.00041095,30]
[378719791,1754989862287,-400.0,0.00041095,30]
[378719793,1754989862296,-400.0,0.00041095,30]
[378719795,1754989862306,-400.0,0.00041095,30]
[378719797,1754989862316,-400.0,0.00041095,30]
[378719799,1754989862326,-400.0,0.00041095,30]
[378719801,1754989862335,-400.0,0.00041095,30]
[378719803,1754989862345,-478.84,0.00041095,30]
[378719805,1754989862354,-400.0,0.00041095,30]
[378719807,1754989862365,-400.0,0.00041095,30]
[378719809,1754989862375,-565.37,0.00041095,30]
[378719811,1754989862384,-400.0,0.00041095,30]
[378719813,1754989862393,-400.0,0.00041095,30]
[378719815,1754989862403,-400.0,0.00041095,30]
[378719817,1754989862413,-400.36206796,0.00041095,30]
[378719819,1754989862424,-400.0,0.00041095,30]
[378719821,1754989862434,-411.45308053,0.00041095,30]
[378719823,1754989862444,-400.0,0.00041095,30]
[378719825,1754989862453,-400.0,0.00041095,30]
[378719827,1754989862462,-400.0,0.00041095,30]
[378719830,1754989862473,-400.0,0.00041095,30]
[378719832,1754989862483,-400.0,0.00041095,30]
[378719833,1754989862492,-400.0,0.00041095,30]
[378719834,1754989862501,-347.73830075,0.00041095,30]
[378719835,1754989862510,-400.0,0.00041095,30]
[378719836,1754989862519,-400.0,0.00041095,30]
[378719837,1754989862529,-400.0,0.00041095,30]
[378719838,1754989862538,-400.0,0.00041095,30]
[378719839,1754989862547,-211.92619743,0.00041095,30]
[378719840,1754989862557,-1776.0,0.00041104,3]
[378719841,1754989862567,-150.0,0.00041109,2]
[378719842,1754989862576,-150.0,0.00041116,2]
[378719843,1754989862585,-150.0,0.00041117,2]
[378719844,1754989862595,-150.0,0.00041121,2]
[378719845,1754989862605,-252.69240822,0.00041135,2]
[378719846,1754989862614,-150.0,0.0004117,2]
[378719847,1754989862624,-150.0,0.00041174,2]
[378719848,1754989862634,-808.14458489,0.00041182,14]
[378719850,1754989862644,-1000.0,0.000412,14]
[378719851,1754989862654,-150.0,0.00041209,2]
[378719853,1754989862665,-181.31,0.00041225,2]
[378719855,1754989862674,-869.62795089,0.00041246,14]
[378719857,1754989862689,-150.0,0.00041253,2]
[378719859,1754989862699,-1000.0,0.00041254,14]
[378719861,1754989862708,-150.0,0.00041257,2]
[378719863,1754989862717,-150.0,0.00041283,2]
[378719865,1754989862728,-150.0,0.00041297,2]
[378719867,1754989862738,-150.0,0.00041358,60]
[378719869,1754989862747,-502.88099237,0.00041358,60]
[378719871,1754989862758,-508.80999772,0.00041358,60]
[378719873,1754989862768,-150.0,0.00041358,60]
[378719875,1754989862778,-150.0,0.00041358,60]
[378719877,1754989862787,-150.0,0.00041358,60]
[378719879,1754989862796,-500.0,0.00041358,60]
[378719881,1754989862806,-502.12176074,0.00041358,2]
[378719883,1754989862815,-587.75569518,0.00041358,60]
[378719941,1754989863367,-151.0,0.00031933,7]
[378719943,1754989863376,-151.0,0.00035149,7]
[378719945,1754989863385,-151.0,0.00038364,30]
[378719947,1754989863395,-390.87277446,0.00040953,28]
[378719949,1754989863405,-356.12722554,0.00041095,30]
[378719953,1754989863432,-518.0,0.00027818,2]
[378719955,1754989863442,-151.0,0.0003922,30]
[378719957,1754989863452,-43.87277446,0.00041095,30]
[378719959,1754989863461,-95.2529956,0.00041095,30]
[378722118,1754990950201,-554.46936043,0.00023999,2]
[378722119,1754990950221,-464.25658108,0.00023999,2]
[378722120,1754990950242,-150.24,0.00024833,2]
[378722121,1754990950262,-586.35479819,0.0002599,2]
[378722122,1754990950281,-2664.7280251,0.00026,2]
[378722123,1754990950301,-211.32187153,0.00026,2]
[378722124,1754990950321,-115.54310794,0.00026,2]
[378722138,1754991032395,-78.5249895,0.00026,2]
[378722139,1754991032405,-176.53311179,0.000264,3]
[378722140,1754991032415,-823.46688821,0.000264,3]
[378722141,1754991032424,-150.24,0.00027573,2]
[378722142,1754991032434,-379.00915692,0.00028036,2]
[378722143,1754991032543,-138.99084308,0.00028036,2]
[378722144,1754991032552,-150.24,0.00030313,2]
[378722145,1754991032561,-518.0,0.00031588,8]
[378722146,1754991032570,-150.24,0.00033053,2]
[378722147,1754991032579,-518.0,0.00035139,14]
[378722148,1754991032588,-150.24,0.00035792,2]
[378722149,1754991032598,-197.23196468,0.00036957,15]
[378722150,1754991032607,-400.0,0.00036957,2]
[378722151,1754991032616,-123.16210436,0.00036957,2]
[378722152,1754991032627,-433.83789564,0.00036957,2]
[378722153,1754991032636,-400.0,0.00036957,3]
[378722154,1754991032646,-771.31065436,0.00036958,7]
[378722155,1754991032659,-495.47699683,0.00036958,7]
[378722190,1754991038097,-7284.62984678,0.00036958,7]
[378722191,1754991038109,-728.72227732,0.00036958,7]
[378722192,1754991038120,-16139.80836989,0.00036958,7]
[378722193,1754991038153,-975.309126,0.00036958,7]
[378722194,1754991038208,-3193.91382276,0.00036958,7]
[378722195,1754991038219,-7553.36819763,0.00036958,7]
[378722196,1754991038265,-5377.65301908,0.00036958,7]
[378722368,1754991040126,-4735.9723792,0.00036958,7]
[378722370,1754991040140,-1812.41338864,0.00036958,7]
[378722372,1754991040151,-1318.6013205,0.00036958,7]
[378722397,1754991040409,-4409.21030182,0.00036958,7]
[378722399,1754991040419,-1238.41821451,0.00036958,75]
[378722420,1754991040608,-1780.35,0.00037875,2]
[378722422,1754991040618,-268.74,0.00037995,120]
[378722424,1754991040627,-154.0,0.00038,120]
[378722426,1754991040637,-150.24,0.00038532,2]
[378722428,1754991040646,-518.0,0.00038691,21]
[378722430,1754991040655,-1808.8475585,0.00039042,120]
[378722433,1754991040667,-747.65135216,0.00039042,120]
[378722436,1754991040686,-2443.50108934,0.00039042,120]
[378722438,1754991040695,-1000.0,0.00039114,2]
[378722440,1754991040705,-666.0,0.00039186,3]
[378722442,1754991040715,-153.4,0.00039351,2]
[378722444,1754991040723,-176.41,0.00039394,2]
[378722446,1754991040732,-200.0,0.000395,14]
[378722448,1754991040741,-176.41,0.00039525,2]
[378722450,1754991040751,-560.0,0.00039545,5]
[378722452,1754991040762,-500.0,0.000396,14]
[378722454,1754991040770,-176.41,0.00039656,2]
[378722456,1754991040780,-800.0,0.000397,14]
[378722458,1754991040789,-176.41,0.00039788,2]
[378722460,1754991040798,-1100.0,0.000398,14]
[378722462,1754991040807,-594.48201756,0.0003989,50]
[378722464,1754991040816,-1400.0,0.000399,14]
[378722466,1754991040825,-342.01367767,0.000399,2]
[378722468,1754991040834,-162.27388246,0.000399,15]
[378722470,1754991040844,-4347.53281137,0.00039924,2]
[378722472,1754991040853,-804.27830791,0.00039924,2]
[378722474,1754991040863,-4000.0,0.00039975,8]
[378722476,1754991040872,-1175.88,0.0003998,2]
[378722477,1754991040881,-1175.88,0.0003998,2]
[378722480,1754991040892,-4000.0,0.00039981,8]
[378722481,1754991040902,-4000.0,0.00039987,8]
[378722484,1754991040913,-6962.1384524,0.0003999,3]
[378722698,1754991043171,-345.0,0.00039032,3]
[378722712,1754991043310,-4.4696607,0.00039032,3]
[378722715,1754991043321,-538.5303393,0.00039032,3]
[378722716,1754991043330,-601.3855558,0.0003999,3]
[378722717,1754991043549,-888.0,0.00039532,3]
[378722718,1754991043558,-1000.0,0.0003999,3]
[378722720,1754991043569,-32208.81909305,0.0003999,3]
[378722985,1754991046054,-8382.71361078,0.0003999,3]
[378723025,1754991046427,-1202.75914211,0.0003999,3]
[378723838,1754991657760,161.05,0.00013699,2]
[378723871,1754992232409,-150.0,0.000247,2]
[378723872,1754992232419,-179.57507455,0.000247,2]
[378723873,1754992232428,-500.0,0.000248,120]
[378723874,1754992232438,-2500.0,0.000248,120]
[378723875,1754992232447,-500.0,0.00026013,2]
[378723876,1754992232456,-1714.03627481,0.00026013,2]
[378723877,1754992232741,-343.33,0.00026013,2]
[378724169,1754992238198,-436.0,0.00026013,2]
[378724170,1754992238211,-6.63372519,0.00026013,2]
[378724171,1754992238220,-300.0,0.00027224,2]
[378724172,1754992238230,-500.0,0.00027225,120]
[378724173,1754992238239,-2500.0,0.00027225,120]
[378724174,1754992238248,-250.0,0.00027225,2]
[378724175,1754992238257,-500.0,0.0002728,2]
[378724176,1754992238266,-2500.0,0.0002728,2]
[378724177,1754992238276,-500.0,0.00027832,120]
[378724178,1754992238286,-2500.0,0.00027832,120]
[378724179,1754992238296,-843.0035059,0.00029,10]
[378724180,1754992238306,-420.0,0.00029425,2]
[378724181,1754992238315,-587.0,0.00031805,2]
[378724182,1754992238324,-200.0,0.00032919,5]
[378724183,1754992238334,-600.0,0.00033049,2]
[378724184,1754992238342,-397.87,0.00033049,2]
[378724185,1754992238352,-150.24,0.00033278,2]
[378724186,1754992238361,-823.0,0.00034377,2]
[378724187,1754992238370,-1246.47608468,0.000345,5]
[378724188,1754992238397,-254.20485639,0.000345,5]
[378724189,1754992238408,-979.68276412,0.000345,5]
[378724190,1754992238419,-2363.63629481,0.000345,5]
[378724191,1754992238428,-128.42404021,0.00037156,2]
[378724192,1754992238439,-1023.57595979,0.00037156,2]
[378724193,1754992238448,-343.82784935,0.00037233,2]
[378724194,1754992238458,-495.3099998,0.00037233,2]
[378724195,1754992238469,-7124.50344723,0.00037233,2]
[378724196,1754992238488,-431.69598331,0.00037233,2]
[378724197,1754992238507,-345.87173433,0.00037233,2]
[378724198,1754992238525,-295.25097263,0.00037233,2]
[378724370,1754992240359,-3282.40841127,0.00037233,2]
[378724373,1754992240371,-825.41604965,0.00037233,2]
[378724388,1754992240577,-1186.8,0.00037233,2]
[378724676,1754992243309,-13563.90555243,0.00037233,2]
[378724678,1754992243319,-150.99,0.00037233,2]
[378724680,1754992243328,-443.19,0.00037233,2]
[378724682,1754992243338,-511.892,0.00037438,48]
[378724684,1754992243347,-153.4,0.00037643,2]
[378724686,1754992243357,-163.76,0.00037851,2]
[378724688,1754992243366,-150.24,0.00038758,2]
[378724690,1754992243375,-246.34,0.00038785,120]
[378724692,1754992243385,-2934.80396269,0.0003889,2]
[378724694,1754992243395,-161.40190978,0.0003889,2]
[378724696,1754992243404,-594.48201755,0.0003889,47]
[378724698,1754992243414,-2920.22239223,0.0003889,2]
[378724700,1754992243423,-162.27388246,0.00038891,15]
[378724702,1754992243433,-2038.37179952,0.00038891,11]
[378724704,1754992243442,-2934.80396264,0.00038891,2]
[378724706,1754992243452,-2934.80396264,0.00038892,2]
[378724708,1754992243462,-2934.80396264,0.00038893,2]
[378724710,1754992243471,-2934.80396264,0.00038894,2]
[378724712,1754992243480,-2934.80396264,0.00038896,2]
[378724714,1754992243490,-2934.80396264,0.00038897,2]
[378724716,1754992243499,-2934.80396264,0.00038898,2]
[378724718,1754992243508,-2934.80396264,0.00038899,2]
[378724719,1754992243518,-5400.11351755,0.000389,10]
[378724721,1754992243527,-2934.80396264,0.000389,2]
[378724723,1754992243537,-3575.80244673,0.000389,2]
[378724726,1754992243548,-47.14156277,0.000389,2]
[378724728,1754992243558,-536.1855386,0.000389,2]
[378724729,1754992243572,-1953.00956077,0.0003898,31]
[378724733,1754992243594,-25927.1105823,0.0003898,31]
[378724735,1754992243603,-7683.93545868,0.0003898,61]
[378724737,1754992243613,-9101.29368908,0.0003898,3]
[378724739,1754992243623,-489.29187735,0.0003898,3]
[378724748,1754992243720,-96.89008237,0.0003898,3]
[378724750,1754992243731,-11840.0,0.0003898,3]
[378724754,1754992243754,-1168.48076701,0.0003898,3]
[378724756,1754992243765,-2650.6938372,0.0003898,3]
[378724758,1754992243776,-1952.4,0.0003898,3]
[378724762,1754992243802,-1888.0,0.0003898,3]
[378724764,1754992243817,-1310.37432008,0.0003898,3]
[378724766,1754992243828,-870.60764668,0.0003898,3]
[378725022,1754992246230,-639.22380711,0.0003898,3]
[378725051,1754992246386,-1014.93384598,0.0003898,3]
[378725058,1754992246445,-1130.07324647,0.0003898,3]
[378725061,1754992246456,-400.0,0.0003898,3]
[378725096,1754992246792,-373.96952708,0.0003898,3]
[378727545,1754992837238,161.05,0.00013699,2]
[378727560,1754993431566,-2061.49242972,0.00026472,2]
[378727561,1754993431576,-250.0,0.00026486,2]
[378727562,1754993431586,-201.27432189,0.000265,2]
[378727563,1754993431595,-250.0,0.00029119,2]
[378727564,1754993431606,-150.24,0.00032425,2]
[378727565,1754993431616,-1200.0,0.00036666,3]
[378727566,1754993431625,-4146.0,0.00036667,2]
[378727567,1754993431635,-2701.2,0.00036667,2]
[378727568,1754993431645,-12976.87437977,0.00036976,2]
[378727569,1754993431657,-2634.54120887,0.00036976,2]
[378727570,1754993431676,-1793.72759095,0.00036976,2]
[378727571,1754993431687,-439.26682041,0.00036976,2]
[378727572,1754993431696,-8297.03,0.00036976,2]
[378727573,1754993431706,-150.99,0.00036976,2]
[378727574,1754993431715,-23385.13,0.00036976,30]
[378727575,1754993431724,-162.92943777,0.00036976,120]
[378727576,1754993431734,-5000.0,0.00037462,2]
[378727577,1754993431743,-1000.0,0.00037589,2]
[378727578,1754993431752,-985.0,0.00037593,2]
[378727579,1754993431762,-225.81,0.00037675,30]
[378727580,1754993431771,-173.73,0.00037695,2]
[378727581,1754993431781,-23900.0,0.00037732,2]
[378727582,1754993431790,-198.3,0.00037811,2]
[378727583,1754993431799,-738.001,0.00037811,49]
[378727584,1754993431808,-666.0,0.00037855,3]
[378727585,1754993431817,-1000.0,0.00037873,2]
[378727586,1754993431826,-176.89,0.00037928,2]
[378727587,1754993431836,-150.55,0.00037988,120]
[378727588,1754993431845,-5000.0,0.00037999,6]
[378727589,1754993431854,-10000.0,0.00038,6]
[378727590,1754993431863,-9294.6398014,0.00038,31]
[378727591,1754993431875,-550.53020446,0.00038,31]
[378727592,1754993431893,-355.57996271,0.00038,31]
[378727593,1754993431905,-1000.0,0.00038,31]
[378727594,1754993431917,-5799.25003143,0.00038,31]
[378727595,1754993431927,-300.0,0.000384,14]
[378727596,1754993431937,-700.0,0.000385,14]
[378727597,1754993431951,-405.12656787,0.000385,120]
[378727598,1754993431960,-400.0,0.000385,120]
[378727599,1754993431970,-400.0,0.000385,120]
[378727600,1754993431979,-400.0,0.000385,120]
[378727601,1754993431989,-1000.0,0.000386,14]
[378727602,1754993431999,-625.20090427,0.000387,14]
[378727603,1754993432011,-774.79909573,0.000387,14]
[378727604,1754993432022,-772.82364647,0.000388,14]
[378727606,1754993432058,-927.17635353,0.000388,14]
[378727607,1754993432068,-166.71,0.00038826,2]
[378727608,1754993432077,-643.27717006,0.0003888,2]
[378727609,1754993432087,-169.65898023,0.00038888,15]
[378727610,1754993432097,-594.48201755,0.0003889,47]
[378727612,1754993432106,-2288.28768011,0.0003889,2]
[378727614,1754993432118,-343.17697357,0.0003889,2]
[378727616,1754993432129,-469.75714858,0.0003889,2]
[378727617,1754993432139,-3101.22180219,0.00038891,2]
[378727618,1754993432149,-307.77495302,0.00038892,2]
[378727620,1754993432159,-3101.22180219,0.00038892,2]
[378727623,1754993432169,-91.89188303,0.00038893,2]
[378727625,1754993432185,-215.88306999,0.00038893,2]
[378727627,1754993432194,-1000.23803352,0.00038893,2]
[378727631,1754993432225,-1900.0,0.00038893,2]
[378727640,1754993437469,-1171.0,0.00036667,2]
[378727641,1754993437479,-200.98376867,0.00038893,2]
[378727642,1754993437488,-307.77495302,0.00038894,2]
[378727643,1754993437497,-3101.22180219,0.00038894,2]
[378727644,1754993437507,-307.77495302,0.00038896,2]
[378727645,1754993437516,-2214.8290641,0.00038896,2]
[378727646,1754993437561,-886.39273809,0.00038896,2]
[378727647,1754993437570,-307.77495302,0.00038897,2]
[378727648,1754993437580,-3101.22180219,0.00038897,2]
[378727649,1754993437590,-307.77495302,0.00038898,2]
[378727650,1754993437600,-3101.22180219,0.00038898,2]
[378727651,1754993437610,-307.77495302,0.00038899,2]
[378727652,1754993437620,-3101.22180219,0.00038899,2]
[378727653,1754993437629,-5888.80824633,0.00038899,31]
[378727654,1754993437644,-15017.67097593,0.00038899,31]
[378727655,1754993437655,-9241.26632924,0.00038899,31]
[378727656,1754993437666,-2148.7832613,0.00038899,31]
[378727657,1754993437683,-935.58438475,0.00038899,31]
[378727658,1754993437713,-1590.72447983,0.00038899,31]
[378727659,1754993437725,-4117.22239416,0.00038899,31]
[378727660,1754993437734,-3841.96772934,0.00038899,61]
[378727661,1754993437743,-307.77495302,0.000389,2]
[378727662,1754993437752,-3101.22180219,0.000389,2]
[378727663,1754993437762,-300.0,0.000389,14]
[378727664,1754993437771,-160.6728356,0.000389,2]
[378727665,1754993437780,-3019.1200079,0.000389,2]
[378727666,1754993437790,-337.83502183,0.000389,2]
[378727667,1754993437800,-188.0,0.0003898,3]
[378727668,1754993437809,-188.60573062,0.0003898,31]